fUSD/lending_fUSD_20240919
["ID","MTS","AMOUNT","RATE_DAILY","PERIOD"]
[338543815,1726727432965,-1378.73,0.00012891,2]
[338543816,1726727432974,-500.0,0.00012891,2]
[338543817,1726727432983,-500.0,0.00012891,2]
[338543818,1726727432992,-875.44,0.00012891,2]
[338543819,1726727433002,-625.13053005,0.00012891,2]
[338543820,1726727433014,-500.0,0.00012891,2]
[338543821,1726727433023,-800.44,0.00012891,2]
[338543822,1726727433032,-1579.01,0.00012891,2]
[338543823,1726727433041,-2159.09,0.00012891,2]
[338543824,1726727433051,-1253.90343035,0.00012891,2]
[338543825,1726727433063,-24.64656965,0.00012891,2]
[338543826,1726727433072,-475.35343035,0.00012891,2]
[338543827,1726727433083,-24.64656965,0.00012891,2]
[338543828,1726727433092,-1690.07954813,0.00012891,2]
[338543829,1726727433103,-1256.48045187,0.00012891,2]
[338543830,1726727433112,-500.0,0.00012891,2]
[338543831,1726727433121,-500.0,0.00012891,2]
[338543832,1726727433130,-2251.66,0.00012891,2]
[338543833,1726727433140,-1737.19,0.00012891,2]
[338543834,1726727433149,-590.17,0.00012891,2]
[338543835,1726727433158,-500.0,0.00012891,2]
[338543836,1726727433168,-1038.23,0.00012891,2]
[338543837,1726727433177,-500.0,0.00012891,2]
[338543838,1726727433186,-500.0,0.00012891,2]
[338543839,1726727433196,-944.01,0.00012891,2]
[338543840,1726727433205,-500.0,0.00012891,2]
[338543841,1726727433214,-1087.42,0.00012891,2]
[338543842,1726727433223,-500.0,0.00012891,2]
[338543843,1726727433233,-617.82,0.00012891,2]
[338543844,1726727433242,-500.0,0.00012891,2]
[338543845,1726727433251,-428.28380106,0.00012891,2]
[338543846,1726727433262,-585.65,0.00012891,2]
[338543847,1726727433271,-2000.21,0.00012891,2]
[338543848,1726727433280,-500.0,0.00012891,2]
[338543849,1726727433290,-500.0,0.00012891,2]
[338543850,1726727433299,-500.0,0.00012891,2]
[338543851,1726727433308,-6339.35,0.00012891,2]
[338543852,1726727433318,-1145.23,0.00012891,2]
[338543853,1726727433327,-776.4,0.00012891,2]
[338543854,1726727433336,-2664.81,0.00012891,2]
[338543855,1726727433346,-455.40066729,0.00012891,2]
[338543856,1726727438173,-1335.85121143,0.0001289,2]
[338543857,1726727438184,-1487.93878857,0.0001289,2]
[338543858,1726727438194,-588.40426571,0.0001289,2]
[338543859,1726727438206,-371.51573429,0.0001289,2]
[338543860,1726727438215,-1453.17933271,0.00012891,2]
[338543861,1726727438225,-500.0,0.00012891,2]
[338543862,1726727438235,-500.0,0.00012891,2]
[338543863,1726727438244,-500.0,0.00012891,2]
[338543864,1726727438254,-500.0,0.00012891,2]
[338543865,1726727438264,-500.0,0.00012891,2]
[338543866,1726727438274,-2363.12,0.00012891,2]
[338543867,1726727438283,-500.0,0.00012891,2]
[338543868,1726727438293,-997.01,0.00012891,2]
[338543869,1726727438303,-500.0,0.00012891,2]
[338543870,1726727438313,-2858.73,0.00012891,2]
[338543871,1726727438323,-983.79,0.00012891,2]
[338543872,1726727438332,-500.0,0.00012891,2]
[338543873,1726727438341,-11942.79,0.00012891,2]
[338543874,1726727438351,-827.71,0.00012891,2]
[338543875,1726727438362,-2763.38,0.00012891,2]
[338543876,1726727438371,-500.0,0.00012891,2]
[338543877,1726727438382,-4252.48,0.00012891,2]
[338543878,1726727438392,-1310.27,0.00012891,2]
[338543879,1726727438403,-500.0,0.00012891,2]
[338543880,1726727438418,-26408.64,0.00012891,2]
[338543881,1726727438428,-3911.48,0.00012891,2]
[338543882,1726727438439,-624.79,0.00012891,2]
[338543883,1726727438449,-1485.84122443,0.00012891,2]
[338543884,1726727438461,-740.34726879,0.00012891,2]
[338543885,1726727438473,-328.27150678,0.00012891,2]
[338543886,1726727438484,-2407.75,0.00012891,2]
[338543887,1726727438494,-500.0,0.00012891,2]
[338543888,1726727438503,-500.0,0.00012891,2]
[338543889,1726727438516,-3906.71,0.00012891,2]
[338543890,1726727438525,-501.55,0.00012891,2]
[338543891,1726727438535,-2271.16,0.00012891,2]
[338543892,1726727438545,-504.66,0.00012891,2]
[338543893,1726727438554,-1126.66,0.00012891,2]
[338543894,1726727438563,-6333.71,0.00012891,2]
[338543895,1726727438572,-1865.31,0.00012891,2]
[338543896,1726727438582,-2831.9,0.00012891,2]
[338543897,1726727438591,-844.31,0.00012891,2]
[338543899,1726727438601,-500.0,0.00012891,2]
[338543900,1726727438610,-692.8,0.00012891,2]
[338543901,1726727438619,-500.0,0.00012891,2]
[338543902,1726727438628,-500.0,0.00012891,2]
[338543903,1726727438637,-725.12,0.00012891,2]
[338543904,1726727438647,-2432.52,0.00012891,2]
[338543905,1726727438656,-3270.93,0.00012891,2]
[338543906,1726727438666,-1366.73,0.00012891,2]
[338543907,1726727438675,-1343.87,0.00012891,2]
[338543908,1726727438685,-816.84,0.00012891,2]
[338543909,1726727438694,-1808.46,0.00012891,2]
[338543910,1726727438703,-2187.22,0.00012891,2]
[338543911,1726727438713,-3560.3,0.00012891,2]
[338543912,1726727438723,-1000.0,0.00012891,2]
[338543913,1726727438732,-2260.53,0.00012891,2]
[338543914,1726727438741,-500.0,0.00012891,2]
[338543915,1726727438751,-938.64,0.00012891,2]
[338543916,1726727438761,-907.38,0.00012891,2]
[338543917,1726727438770,-689.48,0.00012891,2]
[338543918,1726727438779,-1397.34,0.00012891,2]
[338543919,1726727438788,-500.0,0.00012891,2]
[338543920,1726727438798,-1060.45,0.00012891,2]
[338543921,1726727438807,-1827.73,0.00012891,2]
[338543922,1726727438816,-1770.22161397,0.00012891,2]
[338543923,1726727438828,-1954.87549614,0.00012891,2]
[338543924,1726727438843,-225.42288989,0.00012891,2]
[338543925,1726727438853,-77.73714011,0.00012891,2]
[338543926,1726727438864,-315.0,0.00012891,2]
[338543927,1726727438875,-107.26285989,0.00012891,2]
[338543928,1726727438885,-700.22,0.00012891,2]
[338543929,1726727438894,-1318.33,0.00012891,2]
[338543930,1726727438904,-3913.37,0.00012891,2]
[338543931,1726727438913,-2358.13,0.00012891,2]
[338543932,1726727438922,-500.0,0.00012891,2]
[338543933,1726727438932,-1263.92,0.00012891,2]
[338543934,1726727438941,-1429.93,0.00012891,2]
[338543935,1726727438951,-500.0,0.00012891,2]
[338543936,1726727438960,-513.66,0.00012891,2]
[338543937,1726727438969,-1479.13,0.00012891,2]
[338543938,1726727438979,-1304.38,0.00012891,2]
[338543939,1726727438988,-500.0,0.00012892,2]
[338543940,1726727438998,-500.0,0.00012892,2]
[338543941,1726727439008,-945.83,0.00012892,2]
[338543942,1726727439018,-1037.48,0.00012892,2]
[338543943,1726727439027,-500.0,0.00012892,2]
[338543944,1726727439036,-643.06,0.00012892,2]
[338543945,1726727439047,-500.0,0.00012892,2]
[338543946,1726727439056,-500.0,0.00012892,2]
[338543947,1726727439065,-500.0,0.00012892,2]
[338543948,1726727439075,-500.0,0.00012892,2]
[338543949,1726727439084,-500.0,0.00012892,2]
[338543950,1726727439093,-86.77057819,0.00012892,2]
[338543951,1726727439141,-495.11942181,0.00012892,2]
[338543952,1726727439150,-949.54,0.00012892,2]
[338543953,1726727439160,-805.16,0.00012892,2]
[338543954,1726727439169,-765.75,0.00012892,2]
[338543955,1726727439179,-500.0,0.00012892,2]
[338543956,1726727439189,-500.0,0.00012892,2]
[338543957,1726727439198,-500.0,0.00012892,2]
[338543958,1726727439207,-521.05,0.00012892,2]
[338543959,1726727439216,-410.57313746,0.00012892,2]
[338543960,1726727439228,-89.42686254,0.00012892,2]
[338543961,1726727439238,-500.0,0.00012892,2]
[338543962,1726727439248,-500.0,0.00012892,2]
[338543963,1726727439258,-500.0,0.00012892,2]
[338543964,1726727439278,-1138.75,0.00012892,2]
[338543965,1726727439288,-688.27,0.00012892,2]
[338543966,1726727439297,-1366.28,0.00012892,2]
[338543967,1726727439307,-691.08,0.00012892,2]
[338543968,1726727439316,-500.0,0.00012892,2]
[338543969,1726727439326,-500.0,0.00012892,2]
[338543970,1726727439335,-500.0,0.00012892,2]
[338543971,1726727439347,-500.0,0.00012892,2]
[338543972,1726727439357,-500.0,0.00012892,2]
[338543973,1726727439368,-500.0,0.00012892,2]
[338543974,1726727439378,-500.0,0.00012892,2]
[338543975,1726727439388,-500.0,0.00012892,2]
[338543976,1726727439397,-840.26,0.00012892,2]
[338543977,1726727439409,-500.0,0.00012892,2]
[338543978,1726727439419,-500.0,0.00012892,2]
[338543979,1726727439428,-500.0,0.00012892,2]
[338543980,1726727439438,-652.04,0.00012892,2]
[338543981,1726727439448,-724.44,0.00012892,2]
[338543982,1726727439457,-500.0,0.00012892,2]
[338543983,1726727439467,-500.0,0.00012892,2]
[338543984,1726727439476,-500.0,0.00012892,2]
[338543985,1726727439486,-500.0,0.00012892,2]
[338543986,1726727439496,-1490.62,0.00012892,2]
[338543987,1726727439505,-989.14,0.00012892,2]
[338543988,1726727439519,-500.0,0.00012892,2]
[338543989,1726727439529,-500.0,0.00012892,2]
[338543990,1726727439539,-500.0,0.00012892,2]
[338543991,1726727439548,-500.0,0.00012892,2]
[338543992,1726727439558,-500.0,0.00012892,2]
[338543993,1726727439567,-500.0,0.00012892,2]
[338543994,1726727439577,-795.18,0.00012892,2]
[338543995,1726727439586,-500.0,0.00012892,2]
[338543996,1726727439598,-500.0,0.00012892,2]
[338543997,1726727439608,-500.0,0.00012892,2]
[338543998,1726727439617,-440.98724007,0.00012892,2]
[338543999,1726727439630,-301.39275993,0.00012892,2]
[338544000,1726727439641,-129.09029076,0.00012892,2]
[338544001,1726727439660,-370.90970924,0.00012892,2]
[338544002,1726727439670,-500.0,0.00012892,2]
[338544003,1726727439680,-1378.5,0.00012892,2]
[338544004,1726727439689,-506.91,0.00012892,2]
[338544005,1726727439698,-249.91313774,0.00012892,2]
[338544006,1726727439710,-281.63686226,0.00012892,2]
[338544007,1726727439720,-500.0,0.00012892,2]
[338544008,1726727439729,-687.76,0.00012892,2]
[338544009,1726727439738,-674.72,0.00012892,2]
[338544010,1726727439748,-500.0,0.00012892,2]
[338544011,1726727439757,-703.01,0.00012892,2]
[338544012,1726727439769,-500.0,0.00012892,2]
[338544013,1726727439779,-500.0,0.00012892,2]
[338544014,1726727439788,-808.74,0.00012892,2]
[338544015,1726727439798,-1362.93,0.00012892,2]
[338544016,1726727439807,-500.0,0.00012892,2]
[338544017,1726727439819,-500.0,0.00012892,2]
[338544018,1726727439828,-500.0,0.00012892,2]
[338544019,1726727439839,-1797.12,0.00012892,2]
[338544020,1726727439848,-500.0,0.00012892,2]
[338544021,1726727439858,-500.0,0.00012892,2]
[338544022,1726727439868,-500.0,0.00012892,2]
[338544023,1726727439879,-1364.76402132,0.00012892,2]
[338544024,1726727439891,-53.56597868,0.00012892,2]
[338544025,1726727439901,-500.0,0.00012892,2]
[338544026,1726727439912,-913.53,0.00012892,2]
[338544027,1726727439922,-500.0,0.00012892,2]
[338544028,1726727439932,-500.0,0.00012892,2]
[338544029,1726727439942,-500.0,0.00012892,2]
[338544030,1726727439952,-500.0,0.00012892,2]
[338544031,1726727439961,-1117.5,0.00012892,2]
[338544032,1726727439971,-500.0,0.00012892,2]
[338544033,1726727439980,-500.0,0.00012892,2]
[338544034,1726727439990,-500.0,0.00012892,2]
[338544035,1726727439999,-500.0,0.00012892,2]
[338544036,1726727440079,-1930.53,0.00012892,2]
[338544037,1726727440089,-500.0,0.00012892,2]
[338544038,1726727440099,-532.28,0.00012892,2]
[338544040,1726727440109,-500.0,0.00012892,2]
[338544041,1726727440118,-759.26,0.00012892,2]
[338544042,1726727440128,-500.0,0.00012892,2]
[338544043,1726727440137,-500.0,0.00012892,2]
[338544044,1726727440146,-500.0,0.00012892,2]
[338544045,1726727440156,-744.38,0.00012892,2]
[338544046,1726727440166,-597.86,0.00012892,2]
[338544047,1726727440175,-177.78208874,0.00012892,2]
[338544048,1726727440184,-1292.07,0.00012892,2]
[338544049,1726727440195,-500.0,0.00012892,2]
[338544050,1726727440204,-500.0,0.00012892,2]
[338544051,1726727440213,-1030.77,0.00012892,2]
[338544052,1726727440223,-500.0,0.00012892,2]
[338544053,1726727440232,-697.23,0.00012892,2]
[338544054,1726727440242,-1066.45,0.00012892,2]
[338544055,1726727440252,-1320.99,0.00012892,2]
[338544056,1726727440263,-1062.53,0.00012892,2]
[338544057,1726727440272,-500.0,0.00012892,2]
[338544058,1726727440282,-1397.69,0.00012892,2]
[338544059,1726727440292,-753.42,0.00012892,2]
[338544060,1726727440301,-500.0,0.00012892,2]
[338544061,1726727440311,-500.0,0.00012892,2]
[338544062,1726727440320,-635.15,0.00012892,2]
[338544063,1726727440330,-694.01,0.00012892,2]
[338544064,1726727440339,-500.0,0.00012892,2]
[338544065,1726727440349,-151.65318082,0.00012892,2]
[338544066,1726727440361,-348.34681918,0.00012892,2]
[338544067,1726727440371,-500.0,0.00012892,2]
[338544068,1726727440380,-500.0,0.00012892,2]
[338544069,1726727440389,-14.93631573,0.00012892,2]
[338544070,1726727440401,-485.06368427,0.00012892,2]
[338544071,1726727440414,-1423.26,0.00012892,2]
[338544072,1726727440423,-952.81,0.00012892,2]
[338544073,1726727440433,-769.5,0.00012892,2]
[338544074,1726727440442,-253.37933882,0.00012892,2]
[338544075,1726727440452,-500.0,0.00012892,2]
[338544076,1726727440462,-900.51,0.00012892,2]
[338544077,1726727440471,-651.92,0.00012892,2]
[338544078,1726727440483,-500.0,0.00012892,2]
[338544079,1726727440495,-1036.87,0.00012892,2]
[338544080,1726727440504,-1730.41,0.00012892,2]
[338544081,1726727440517,-604.6,0.00012892,2]
[338544082,1726727440526,-1862.37,0.00012892,2]
[338544083,1726727440535,-1037.99,0.00012892,2]
[338544084,1726727440545,-501.17,0.00012892,2]
[338544085,1726727440554,-1213.19,0.00012892,2]
[338544086,1726727440564,-811.47,0.00012892,2]
[338544087,1726727440574,-531.59,0.00012892,2]
[338544089,1726727440583,-500.0,0.00012892,2]
[338544090,1726727440592,-500.0,0.00012892,2]
[338544092,1726727440602,-791.0,0.00012892,2]
[338544093,1726727440611,-593.78,0.00012892,2]
[338544094,1726727440623,-500.0,0.00012892,2]
[338544096,1726727440632,-957.68,0.00012892,2]
[338544098,1726727440642,-500.0,0.00012892,2]
[338544100,1726727440652,-500.0,0.00012892,2]
[338544102,1726727440662,-1329.19,0.00012892,2]
[338544104,1726727440671,-339.72958222,0.00012892,2]
[338544106,1726727440680,-914.92,0.00012892,2]
[338544108,1726727440690,-500.0,0.00012892,2]
[338544110,1726727440699,-500.0,0.00012892,2]
[338544112,1726727440711,-500.0,0.00012892,2]
[338544114,1726727440720,-600.63,0.00012892,2]
[338544116,1726727440731,-500.0,0.00012892,2]
[338544117,1726727440741,-802.84,0.00012892,2]
[338544118,1726727440750,-759.49,0.00012892,2]
[338544119,1726727440760,-1028.8,0.00012892,2]
[338544120,1726727440770,-500.0,0.00012892,2]
[338544121,1726727440782,-500.0,0.00012892,2]
[338544122,1726727440791,-710.86,0.00012892,2]
[338544123,1726727440800,-500.0,0.00012892,2]
[338544124,1726727440809,-500.0,0.00012892,2]
[338544125,1726727440818,-1158.91,0.00012892,2]
[338544126,1726727440828,-493.03390217,0.00012892,2]
[338544127,1726727440840,-6.96609783,0.00012892,2]
[338544128,1726727440849,-656.24,0.00012892,2]
[338544129,1726727440858,-446.00277085,0.00012892,2]
[338544130,1726727440869,-53.99722915,0.00012892,2]
[338544131,1726727440879,-1338.02,0.00012892,2]
[338544132,1726727440889,-4615.14,0.00012892,2]
[338544133,1726727440899,-1212.26,0.00012892,2]
[338544134,1726727440908,-1266.86,0.00012892,2]
[338544135,1726727440918,-227.38098746,0.00012892,2]
[338544136,1726727440927,-1502.12,0.00012892,2]
[338544137,1726727440937,-1558.28,0.00012892,2]
[338544138,1726727440947,-2532.54,0.00012892,2]
[338544140,1726727440956,-1133.26,0.00012892,2]
[338544141,1726727440965,-760.46,0.00012892,2]
[338544142,1726727440975,-500.0,0.00012892,2]
[338544144,1726727440985,-1034.28,0.00012892,2]
[338544146,1726727440994,-1331.64517916,0.00012892,2]
[338544148,1726727441006,-468.18482084,0.00012892,2]
[338544150,1726727441018,-102.37517911,0.00012892,2]
[338544152,1726727441031,-397.62482089,0.00012892,2]
[338544154,1726727441041,-500.0,0.00012892,2]
[338544156,1726727441050,-500.0,0.00012892,2]
[338544158,1726727441060,-500.0,0.00012892,2]
[338544160,1726727441069,-261.52310228,0.00012892,2]
[338544162,1726727441080,-369.78689772,0.00012892,2]
[338544164,1726727441089,-500.0,0.00012892,2]
[338544166,1726727441098,-61.79765957,0.00012892,2]
[338544169,1726727441110,-703.20536157,0.00012892,2]
[338544208,1726727441491,-1956.46697886,0.00012892,2]
[338544210,1726727441501,-563.45,0.00012892,2]
[338544212,1726727441511,-500.0,0.00012892,2]
[338544214,1726727441521,-2776.61,0.00012892,2]
[338544216,1726727441530,-500.0,0.00012892,2]
[338544218,1726727441539,-500.0,0.00012892,2]
[338544220,1726727441548,-1533.98,0.00012892,2]
[338544222,1726727441558,-500.0,0.00012892,2]
[338544224,1726727441567,-695.4,0.00012892,2]
[338544226,1726727441576,-500.0,0.00012892,2]
[338544228,1726727441586,-500.0,0.00012892,2]
[338544230,1726727441595,-1211.19,0.00012892,2]
[338544232,1726727441604,-499.99,0.00012892,2]
[338544234,1726727441614,-500.0,0.00012892,2]
[338544236,1726727441623,-533.03,0.00012892,2]
[338544238,1726727441633,-680.08,0.00012892,2]
[338544240,1726727441643,-500.0,0.00012892,2]
[338544242,1726727441652,-542.5,0.00012892,2]
[338544244,1726727441663,-500.0,0.00012892,2]
[338544246,1726727441675,-516.64,0.00012892,2]
[338544248,1726727441684,-560.82,0.00012892,2]
[338544250,1726727441694,-680.82,0.00012892,2]
[338544253,1726727441704,-512.31862882,0.00012892,2]
[338544255,1726727441717,-333.37137118,0.00012892,2]
[338544257,1726727441727,-397.29142467,0.00012892,2]
[338544259,1726727441739,-423.98857533,0.00012892,2]
[338544261,1726727441748,-202.26642467,0.00012892,2]
[338544263,1726727441759,-297.73357533,0.00012892,2]
[338544265,1726727441769,-500.0,0.00012892,2]
[338544267,1726727441779,-500.0,0.00012892,2]
[338544269,1726727441788,-642.04,0.00012892,2]
[338544271,1726727441797,-825.74,0.00012892,2]
[338544273,1726727441806,-1130.55,0.00012892,2]
[338544275,1726727441816,-955.44,0.00012892,2]
[338544277,1726727441825,-500.0,0.00012892,2]
[338544279,1726727441836,-500.0,0.00012892,2]
[338544281,1726727441845,-500.0,0.00012892,2]
[338544283,1726727441854,-759.92,0.00012892,2]
[338544285,1726727441864,-500.0,0.00012892,2]
[338544287,1726727441874,-500.0,0.00012892,2]
[338544289,1726727441884,-500.0,0.00012892,2]
[338544291,1726727441894,-1013.94,0.00012892,2]
[338544293,1726727441903,-500.0,0.00012892,2]
[338544295,1726727441913,-542.2,0.00012892,2]
[338544297,1726727441923,-500.0,0.00012892,2]
[338544299,1726727441932,-500.0,0.00012892,2]
[338544301,1726727441942,-500.0,0.00012892,2]
[338544303,1726727441951,-500.0,0.00012892,2]
[338544305,1726727441963,-368.73837242,0.00012892,2]
[338544307,1726727441972,-500.0,0.00012892,2]
[338544309,1726727441981,-500.0,0.00012892,2]
[338544311,1726727441990,-500.0,0.00012892,2]
[338544313,1726727441999,-500.0,0.00012892,2]
[338544315,1726727442009,-500.0,0.00012892,2]
[338544317,1726727442019,-813.34,0.00012892,2]
[338544319,1726727442028,-740.08,0.00012892,2]
[338544321,1726727442037,-508.04,0.00012892,2]
[338544323,1726727442047,-500.0,0.00012892,2]
[338544325,1726727442058,-874.82,0.00012892,2]
[338544327,1726727442069,-500.0,0.00012893,2]
[338544329,1726727442078,-525.18,0.00012893,2]
[338544331,1726727442087,-500.0,0.00012893,2]
[338544333,1726727442098,-500.0,0.00012893,2]
[338544335,1726727442107,-579.97,0.00012893,2]
[338544337,1726727442116,-500.0,0.00012893,2]
[338544339,1726727442126,-500.0,0.00012893,2]
[338544341,1726727442136,-535.29,0.00012893,2]
[338544344,1726727442148,-797.70489034,0.00012893,2]
[338544346,1726727442160,-195.94510966,0.00012893,2]
[338544348,1726727442170,-525.82,0.00012893,2]
[338544350,1726727442180,-500.0,0.00012893,2]
[338544352,1726727442190,-500.0,0.00012893,2]
[338544354,1726727442201,-523.71746143,0.00012893,2]
[338544356,1726727442214,-259.16253857,0.00012893,2]
[338544358,1726727442224,-500.0,0.00012893,2]
[338544359,1726727442234,-877.59,0.00012893,2]
[338544360,1726727442243,-500.0,0.00012893,2]
[338544361,1726727442252,-698.04,0.00012893,2]
[338544362,1726727442261,-259.02999456,0.00012893,2]
[338544363,1726727442273,-240.97000544,0.00012893,2]
[338544364,1726727442282,-849.3,0.00012893,2]
[338544365,1726727442292,-135.66646986,0.00012893,2]
[338544366,1726727442303,-364.33353014,0.00012893,2]
[338544367,1726727442313,-500.0,0.00012893,2]
[338544368,1726727442322,-684.00954588,0.00012893,2]
[338544369,1726727442334,-218.97045412,0.00012893,2]
[338544370,1726727442343,-500.0,0.00012893,2]
[338544371,1726727442353,-76.01028225,0.00012893,2]
[338544372,1726727442364,-377.63072068,0.00012893,2]
[338544373,1726727442375,-46.35899707,0.00012893,2]
[338544374,1726727442384,-602.66100293,0.00012893,2]
[338544375,1726727442395,-269.01899707,0.00012893,2]
[338544376,1726727442407,-500.0,0.00012893,2]
[338544377,1726727442417,-999.99,0.00012893,2]
[338544378,1726727442427,-500.0,0.00012893,2]
[338544379,1726727442436,-764.96,0.00012893,2]
[338544380,1726727442447,-521.21,0.00012893,2]
[338544381,1726727442456,-289.61694789,0.00012893,2]
[338544382,1726727442468,-210.38305211,0.00012893,2]
[338544383,1726727442477,-673.78339453,0.00012893,2]
[338544384,1726727442489,-39.83660547,0.00012893,2]
[338544385,1726727442498,-500.0,0.00012893,2]
[338544386,1726727442507,-500.0,0.00012893,2]
[338544387,1726727442518,-500.0,0.00012893,2]
[338544388,1726727442527,-500.0,0.00012893,2]
[338544389,1726727442537,-500.0,0.00012893,2]
[338544390,1726727442547,-500.0,0.00012893,2]
[338544391,1726727442556,-500.0,0.00012893,2]
[338544392,1726727442565,-500.0,0.00012893,2]
[338544393,1726727442574,-693.54,0.00012893,2]
[338544394,1726727442584,-874.29,0.00012893,2]
[338544395,1726727442593,-500.0,0.00012893,2]
[338544396,1726727442602,-500.0,0.00012893,2]
[338544397,1726727442611,-634.11,0.00012893,2]
[338544398,1726727442620,-500.0,0.00012893,2]
[338544399,1726727442630,-399.11507661,0.00012893,2]
[338544400,1726727442639,-500.0,0.00012893,2]
[338544401,1726727442649,-525.06,0.00012893,2]
[338544402,1726727442658,-500.0,0.00012893,2]
[338544403,1726727442667,-500.0,0.00012893,2]
[338544404,1726727442676,-1528.59,0.00012893,2]
[338544405,1726727442686,-500.0,0.00012893,2]
[338544406,1726727442695,-928.19,0.00012893,2]
[338544407,1726727442706,-500.0,0.00012893,2]
[338544408,1726727442715,-779.46,0.00012893,2]
[338544409,1726727442724,-500.0,0.00012893,2]
[338544410,1726727442734,-1553.05,0.00012893,2]
[338544411,1726727442743,-500.0,0.00012893,2]
[338544412,1726727442752,-1335.33,0.00012893,2]
[338544413,1726727442762,-500.0,0.00012893,2]
[338544414,1726727442783,-1485.39,0.00012893,2]
[338544415,1726727442793,-614.16,0.00012893,2]
[338544416,1726727442802,-698.28,0.00012893,2]
[338544417,1726727442811,-791.75,0.00012893,2]
[338544418,1726727442820,-1729.75,0.00012893,2]
[338544419,1726727442830,-500.0,0.00012893,2]
[338544420,1726727442838,-500.0,0.00012893,2]
[338544421,1726727442847,-640.71,0.00012893,2]
[338544422,1726727442856,-500.0,0.00012893,2]
[338544423,1726727442865,-500.0,0.00012893,2]
[338544424,1726727442874,-1492.32,0.00012893,2]
[338544425,1726727442883,-500.0,0.00012893,2]
[338544426,1726727442892,-500.0,0.00012893,2]
[338544427,1726727442901,-500.0,0.00012893,2]
[338544428,1726727442912,-815.22,0.00012893,2]
[338544430,1726727442921,-500.0,0.00012893,2]
[338544432,1726727442930,-783.19,0.00012893,2]
[338544433,1726727442939,-500.0,0.00012893,2]
[338544434,1726727442949,-500.0,0.00012893,2]
[338544435,1726727442958,-2937.97,0.00012893,2]
[338544436,1726727442967,-500.0,0.00012893,2]
[338544437,1726727442976,-525.48,0.00012893,2]
[338544438,1726727442985,-500.0,0.00012893,2]
[338544439,1726727442994,-520.02,0.00012893,2]
[338544440,1726727443004,-884.65,0.00012893,2]
[338544441,1726727443015,-1557.31,0.00012893,2]
[338544442,1726727443024,-857.43,0.00012893,2]
[338544443,1726727443034,-537.24,0.00012893,2]
[338544444,1726727443043,-500.0,0.00012893,2]
[338544445,1726727443052,-500.0,0.00012893,2]
[338544448,1726727443061,-500.0,0.00012893,2]
[338544452,1726727443070,-1972.51,0.00012893,2]
[338544454,1726727443079,-500.0,0.00012893,2]
[338544457,1726727443088,-537.18,0.00012893,2]
[338544459,1726727443097,-500.0,0.00012893,2]
[338544461,1726727443106,-932.04,0.00012893,2]
[338544462,1726727443115,-700.74,0.00012893,2]
[338544463,1726727443124,-500.0,0.00012893,2]
[338544464,1726727443133,-552.27,0.00012893,2]
[338544465,1726727443142,-500.0,0.00012893,2]
[338544466,1726727443151,-1469.87,0.00012893,2]
[338544467,1726727443160,-500.0,0.00012893,2]
[338544468,1726727443169,-627.34,0.00012893,2]
[338544469,1726727443178,-672.15,0.00012893,2]
[338544470,1726727443187,-734.12,0.00012893,2]